[Event "Titled Tuesday Blitz August 10 2021"]
[White "Al Hosani, Omran"]
[Black "Mamedov, Rauf"]
[WhiteFideId "9308733"]
[BlackFideId "13401653"]
[WhiteElo "2259"]
[BlackElo "2657"]
[Result "0-1"]
[Round "01"]
[TimeControl "180+1"]
[Date "2021.08.10"]
[WhiteClock "0:00:35"]
[BlackClock "0:01:24"]

1. d4 {[%clk 0:02:59]}  Nf6 {[%clk 0:02:41]} 2. c4 {[%clk 0:02:59]}  g6 {[%clk 0:02:41]} 3. Nc3 {[%clk 0:02:59]}  Bg7 {[%clk 0:02:41]} 4. e4 {[%clk 0:02:59]}  d6 {[%clk 0:02:41]} 5. Nf3 {[%clk 0:03:00]}  O-O {[%clk 0:02:41]} 6. Be2 {[%clk 0:03:00]}  e5 {[%clk 0:02:42]} 7. O-O {[%clk 0:03:00]}  Na6 {[%clk 0:02:42]} 8. h3 {[%clk 0:02:48]}  exd4 {[%clk 0:02:41]} 9. Nxd4 {[%clk 0:02:48]}  Re8 {[%clk 0:02:41]} 10. f3 {[%clk 0:02:47]}  Nh5 {[%clk 0:02:39]} 11. Rf2 {[%clk 0:02:44]}  Ng3 {[%clk 0:02:38]} 12. Be3 {[%clk 0:02:44]}  Nc5 {[%clk 0:02:36]} 13. Qd2 {[%clk 0:02:39]}  Ne6 {[%clk 0:02:32]} 14. Bd1 {[%clk 0:02:39]}  c5 {[%clk 0:02:21]} 15. Ndb5 {[%clk 0:02:30]}  Bf8 {[%clk 0:02:21]} 16. Ba4 {[%clk 0:02:25]}  Bd7 {[%clk 0:02:17]} 17. Rd1 {[%clk 0:02:24]}  Qh4 {[%clk 0:02:05]} 18. Nd5 {[%clk 0:02:16]}  a6 {[%clk 0:02:01]} 19. Nbc3 {[%clk 0:02:04]}  Bxa4 {[%clk 0:02:00]} 20. Nxa4 {[%clk 0:02:05]}  Bg7 {[%clk 0:02:00]} 21. b4 {[%clk 0:01:39]}  cxb4 {[%clk 0:01:48]} 22. Qxb4 {[%clk 0:01:39]}  f5 {[%clk 0:01:42]} 23. exf5 {[%clk 0:01:32]}  Nxf5 {[%clk 0:01:41]} 24. Bb6 {[%clk 0:01:25]}  Ned4 {[%clk 0:01:38]} 25. f4 {[%clk 0:00:42]}  Ne2+ {[%clk 0:01:36]} 26. Rxe2 {[%clk 0:00:42]}  Rxe2 {[%clk 0:01:35]} 27. Rf1 {[%clk 0:00:39]}  Rae8 {[%clk 0:01:34]} 28. Bf2 {[%clk 0:00:39]}  Ng3 {[%clk 0:01:25]} 29. Qxb7 {[%clk 0:00:36]}  Rxf2 {[%clk 0:01:25]} 30. Rxf2 {[%clk 0:00:36]}  Re1+ {[%clk 0:01:24]} 31. Kh2 {[%clk 0:00:35]}  Rh1# {[%clk 0:01:24]} 0-1


[Site "https://www.chess.com"]

[Event "Titled Tuesday Blitz August 10 2021"]
[White "Bortnyk, Olexandr"]
[Black "Reprintsev, Alexander"]
[WhiteFideId "14120828"]
[BlackFideId "14100541"]
[WhiteElo "2723"]
[BlackElo "2126"]
[Result "1-0"]
[Round "01"]
[TimeControl "180+1"]
[Date "2021.08.10"]
[WhiteClock "0:01:14"]
[BlackClock "0:01:29"]

1. e4 {[%clk 0:02:56]}  d5 {[%clk 0:02:51]} 2. exd5 {[%clk 0:02:56]}  Qxd5 {[%clk 0:02:51]} 3. Nc3 {[%clk 0:02:56]}  Qa5 {[%clk 0:02:51]} 4. Nf3 {[%clk 0:02:56]}  Nf6 {[%clk 0:02:50]} 5. Be2 {[%clk 0:02:55]}  Nc6 {[%clk 0:02:50]} 6. Rb1 {[%clk 0:02:52]}  e5 {[%clk 0:02:49]} 7. d3 {[%clk 0:02:50]}  Bf5 {[%clk 0:02:47]} 8. a3 {[%clk 0:02:47]}  O-O-O {[%clk 0:02:39]} 9. b4 {[%clk 0:02:42]}  Nxb4 {[%clk 0:02:39]} 10. axb4 {[%clk 0:02:40]}  Bxb4 {[%clk 0:02:40]} 11. Rxb4 {[%clk 0:02:40]}  Qxb4 {[%clk 0:02:40]} 12. Bd2 {[%clk 0:02:41]}  Qb2 {[%clk 0:02:29]} 13. Nxe5 {[%clk 0:02:34]}  Rhe8 {[%clk 0:02:28]} 14. Nc4 {[%clk 0:02:20]}  Qb4 {[%clk 0:02:16]} 15. O-O {[%clk 0:02:13]}  h6 {[%clk 0:02:10]} 16. Bf3 {[%clk 0:02:07]}  Be6 {[%clk 0:02:02]} 17. Ne4 {[%clk 0:01:43]}  Qe7 {[%clk 0:02:01]} 18. Nxf6 {[%clk 0:01:30]}  Qxf6 {[%clk 0:02:02]} 19. Ne3 {[%clk 0:01:29]}  Bd7 {[%clk 0:01:56]} 20. Nd5 {[%clk 0:01:20]}  Qa6 {[%clk 0:01:48]} 21. Bf4 {[%clk 0:01:18]}  Bc6 {[%clk 0:01:45]} 22. Nxc7 {[%clk 0:01:17]}  Qa4 {[%clk 0:01:35]} 23. Nxe8 {[%clk 0:01:16]}  Qxf4 {[%clk 0:01:34]} 24. Bxc6 {[%clk 0:01:13]}  bxc6 {[%clk 0:01:33]} 25. Nxg7 {[%clk 0:01:14]}  Rg8 {[%clk 0:01:29]} 26. Nh5 {[%clk 0:01:14]} 1-0


[Site "https://www.chess.com"]

[Event "Titled Tuesday Blitz August 10 2021"]
[White "Dobrikov, Marco"]
[Black "Moussard, Jules"]
[WhiteFideId "12950378"]
[BlackFideId "642908"]
[WhiteElo "2101"]
[BlackElo "2644"]
[Result "0-1"]
[Round "01"]
[TimeControl "180+1"]
[Date "2021.08.10"]
[WhiteClock "0:02:00"]
[BlackClock "0:01:36"]

1. e4 {[%clk 0:03:00]}  g6 {[%clk 0:02:57]} 2. d4 {[%clk 0:03:00]}  Bg7 {[%clk 0:02:56]} 3. Nf3 {[%clk 0:03:00]}  d6 {[%clk 0:02:56]} 4. c4 {[%clk 0:02:59]}  Nf6 {[%clk 0:02:55]} 5. Nc3 {[%clk 0:02:59]}  O-O {[%clk 0:02:56]} 6. Be2 {[%clk 0:02:59]}  e5 {[%clk 0:02:56]} 7. O-O {[%clk 0:02:59]}  Nc6 {[%clk 0:02:57]} 8. Be3 {[%clk 0:02:58]}  Ng4 {[%clk 0:02:56]} 9. d5 {[%clk 0:02:56]}  Nxe3 {[%clk 0:02:53]} 10. fxe3 {[%clk 0:02:57]}  Ne7 {[%clk 0:02:44]} 11. Kh1 {[%clk 0:02:51]}  Bh6 {[%clk 0:02:39]} 12. Qd3 {[%clk 0:02:50]}  f5 {[%clk 0:02:38]} 13. exf5 {[%clk 0:02:50]}  gxf5 {[%clk 0:02:17]} 14. e4 {[%clk 0:02:50]}  Ng6 {[%clk 0:02:17]} 15. Qc2 {[%clk 0:02:42]}  Nf4 {[%clk 0:02:12]} 16. Bd3 {[%clk 0:02:36]}  Nxd3 {[%clk 0:02:11]} 17. Qxd3 {[%clk 0:02:37]}  Qf6 {[%clk 0:02:09]} 18. Rae1 {[%clk 0:02:33]}  Bd7 {[%clk 0:02:08]} 19. exf5 {[%clk 0:02:24]}  Bxf5 {[%clk 0:02:09]} 20. Ne4 {[%clk 0:02:23]}  Qe7 {[%clk 0:02:07]} 21. Qe2 {[%clk 0:02:22]}  Rf7 {[%clk 0:02:04]} 22. Ng1 {[%clk 0:02:17]}  Raf8 {[%clk 0:01:56]} 23. Rf3 {[%clk 0:02:16]}  Bf4 {[%clk 0:01:51]} 24. Nf2 {[%clk 0:02:09]}  Bg6 {[%clk 0:01:45]} 25. Ngh3 {[%clk 0:02:07]}  Bh5 {[%clk 0:01:37]} 26. g4 {[%clk 0:02:07]}  Bg6 {[%clk 0:01:37]} 27. Ne4 {[%clk 0:02:01]}  Qh4 {[%clk 0:01:36]} 28. Qg2 {[%clk 0:02:00]}  Qxe1+ {[%clk 0:01:36]} 0-1


[Site "https://www.chess.com"]

[Event "Titled Tuesday Blitz August 10 2021"]
[White "Lashkin, Jegor"]
[Black "Veiga, Emerson de Sousa"]
[WhiteFideId "13907808"]
[BlackFideId "2151898"]
[WhiteElo "2293"]
[BlackElo "2034"]
[Result "1-0"]
[Round "01"]
[TimeControl "180+1"]
[Date "2021.08.10"]
[WhiteClock "0:00:11"]
[BlackClock "0:00:19"]

1. d4 {[%clk 0:02:58]}  Nf6 {[%clk 0:02:59]} 2. c4 {[%clk 0:02:48]}  e6 {[%clk 0:02:59]} 3. Nf3 {[%clk 0:02:48]}  Bb4+ {[%clk 0:02:57]} 4. Bd2 {[%clk 0:02:48]}  a5 {[%clk 0:02:56]} 5. g3 {[%clk 0:02:44]}  O-O {[%clk 0:02:55]} 6. Bg2 {[%clk 0:02:43]}  d5 {[%clk 0:02:54]} 7. Qc2 {[%clk 0:02:41]}  c5 {[%clk 0:02:52]} 8. dxc5 {[%clk 0:02:35]}  d4 {[%clk 0:02:47]} 9. O-O {[%clk 0:02:28]}  Nc6 {[%clk 0:02:45]} 10. Bg5 {[%clk 0:02:20]}  h6 {[%clk 0:02:38]} 11. Bxf6 {[%clk 0:02:19]}  Qxf6 {[%clk 0:02:39]} 12. Nbd2 {[%clk 0:02:20]}  e5 {[%clk 0:02:32]} 13. Ne4 {[%clk 0:02:19]}  Qe7 {[%clk 0:02:32]} 14. a3 {[%clk 0:02:10]}  Bxc5 {[%clk 0:02:30]} 15. Nxc5 {[%clk 0:02:10]}  Qxc5 {[%clk 0:02:31]} 16. Nd2 {[%clk 0:02:06]}  Be6 {[%clk 0:02:27]} 17. Rfc1 {[%clk 0:01:59]}  f5 {[%clk 0:02:23]} 18. Qa4 {[%clk 0:01:49]}  e4 {[%clk 0:02:13]} 19. Nb3 {[%clk 0:01:48]}  Qe5 {[%clk 0:02:13]} 20. Rd1 {[%clk 0:01:14]}  Rad8 {[%clk 0:02:09]} 21. c5 {[%clk 0:01:01]}  f4 {[%clk 0:01:48]} 22. Nxa5 {[%clk 0:00:43]}  f3 {[%clk 0:01:13]} 23. exf3 {[%clk 0:00:41]}  exf3 {[%clk 0:01:13]} 24. Bf1 {[%clk 0:00:38]}  Nxa5 {[%clk 0:00:56]} 25. Qxa5 {[%clk 0:00:38]}  Qh5 {[%clk 0:00:53]} 26. Qb5 {[%clk 0:00:22]}  Kh8 {[%clk 0:00:44]} 27. Qxb7 {[%clk 0:00:16]}  Bh3 {[%clk 0:00:43]} 28. Qa6 {[%clk 0:00:15]}  d3 {[%clk 0:00:41]} 29. Bxd3 {[%clk 0:00:11]}  Bg2 {[%clk 0:00:26]} 30. Qg6 {[%clk 0:00:11]}  Qh3 {[%clk 0:00:19]} 31. Qh7# {[%clk 0:00:11]} 1-0


[Site "https://www.chess.com"]

[Event "Titled Tuesday Blitz August 10 2021"]
[White "Le, Tuan Minh"]
[Black "Kozin, Yuri"]
[WhiteFideId "12401153"]
[BlackFideId "4129920"]
[WhiteElo "2450"]
[BlackElo "2464"]
[Result "1-0"]
[Round "01"]
[TimeControl "180+1"]
[Date "2021.08.10"]
[WhiteClock "0:00:19"]
[BlackClock "0:00:21"]

1. d4 {[%clk 0:03:00]}  d5 {[%clk 0:03:00]} 2. Nf3 {[%clk 0:03:00]}  Nf6 {[%clk 0:03:00]} 3. Bf4 {[%clk 0:03:00]}  e6 {[%clk 0:03:01]} 4. e3 {[%clk 0:03:01]}  Bd6 {[%clk 0:03:01]} 5. Nbd2 {[%clk 0:03:01]}  Bxf4 {[%clk 0:03:01]} 6. exf4 {[%clk 0:03:01]}  O-O {[%clk 0:03:02]} 7. c3 {[%clk 0:03:02]}  b6 {[%clk 0:03:03]} 8. Bd3 {[%clk 0:03:02]}  Ba6 {[%clk 0:03:03]} 9. Bxa6 {[%clk 0:03:03]}  Nxa6 {[%clk 0:03:04]} 10. Qe2 {[%clk 0:03:04]}  Nb8 {[%clk 0:03:04]} 11. O-O {[%clk 0:03:04]}  c5 {[%clk 0:03:05]} 12. Rfe1 {[%clk 0:03:05]}  Nc6 {[%clk 0:03:05]} 13. Nf1 {[%clk 0:03:05]}  Qc7 {[%clk 0:03:00]} 14. g3 {[%clk 0:03:05]}  Rac8 {[%clk 0:02:56]} 15. Rad1 {[%clk 0:03:04]}  Rfe8 {[%clk 0:02:54]} 16. Ne3 {[%clk 0:03:04]}  Ne4 {[%clk 0:02:54]} 17. f5 {[%clk 0:03:01]}  cxd4 {[%clk 0:02:46]} 18. Nxd4 {[%clk 0:02:45]}  Nxd4 {[%clk 0:02:40]} 19. Rxd4 {[%clk 0:02:46]}  exf5 {[%clk 0:02:26]} 20. Nxd5 {[%clk 0:02:42]}  Qc5 {[%clk 0:02:16]} 21. Ne3 {[%clk 0:02:35]}  g6 {[%clk 0:02:13]} 22. Red1 {[%clk 0:02:09]}  Ng5 {[%clk 0:02:10]} 23. h4 {[%clk 0:01:24]}  f4 {[%clk 0:01:58]} 24. Rd5 {[%clk 0:01:02]}  Qc7 {[%clk 0:01:36]} 25. Rxg5 {[%clk 0:00:52]}  fxe3 {[%clk 0:01:35]} 26. fxe3 {[%clk 0:00:53]}  h6 {[%clk 0:01:34]} 27. Rg4 {[%clk 0:00:49]}  Qc5 {[%clk 0:01:23]} 28. Rdd4 {[%clk 0:00:46]}  Qe5 {[%clk 0:01:12]} 29. Kf2 {[%clk 0:00:43]}  Qe6 {[%clk 0:01:09]} 30. a3 {[%clk 0:00:37]}  h5 {[%clk 0:01:10]} 31. Rgf4 {[%clk 0:00:36]}  Qh3 {[%clk 0:01:10]} 32. e4 {[%clk 0:00:26]}  f5 {[%clk 0:00:58]} 33. Qf1 {[%clk 0:00:22]}  Qh2+ {[%clk 0:00:54]} 34. Qg2 {[%clk 0:00:23]}  Qxg2+ {[%clk 0:00:55]} 35. Kxg2 {[%clk 0:00:23]}  fxe4 {[%clk 0:00:55]} 36. Rfxe4 {[%clk 0:00:24]}  Rf8 {[%clk 0:00:51]} 37. Re7 {[%clk 0:00:23]}  Rce8 {[%clk 0:00:51]} 38. Rdd7 {[%clk 0:00:22]}  Rxe7 {[%clk 0:00:40]} 39. Rxe7 {[%clk 0:00:22]}  a5 {[%clk 0:00:41]} 40. Re6 {[%clk 0:00:22]}  Kf7 {[%clk 0:00:33]} 41. Rxb6 {[%clk 0:00:22]}  Rd8 {[%clk 0:00:34]} 42. a4 {[%clk 0:00:18]}  Rd3 {[%clk 0:00:31]} 43. Rb5 {[%clk 0:00:18]}  Kf6 {[%clk 0:00:28]} 44. Kh3 {[%clk 0:00:18]}  Rd2 {[%clk 0:00:27]} 45. b4 {[%clk 0:00:18]}  axb4 {[%clk 0:00:25]} 46. cxb4 {[%clk 0:00:19]}  Ra2 {[%clk 0:00:25]} 47. a5 {[%clk 0:00:19]}  Ra4 {[%clk 0:00:25]} 48. Rb6+ {[%clk 0:00:19]}  Kf5 {[%clk 0:00:26]} 49. a6 {[%clk 0:00:20]}  Ke4 {[%clk 0:00:25]} 50. b5 {[%clk 0:00:18]}  Ra5 {[%clk 0:00:25]} 51. Rb7 {[%clk 0:00:18]}  Kf3 {[%clk 0:00:21]} 52. a7 {[%clk 0:00:18]}  Ra1 {[%clk 0:00:21]} 53. Rf7+ {[%clk 0:00:18]}  Ke3 {[%clk 0:00:21]} 54. b6 {[%clk 0:00:19]} 1-0


[Site "https://www.chess.com"]

[Event "Titled Tuesday Blitz August 10 2021"]
[White "Levine, Joseph"]
[Black "Yakubboev, Nodirbek"]
[WhiteFideId "30940346"]
[BlackFideId "14203987"]
[WhiteElo "1802"]
[BlackElo "2519"]
[Result "0-1"]
[Round "01"]
[TimeControl "180+1"]
[Date "2021.08.10"]
[WhiteClock "0:00:04"]
[BlackClock "0:00:06"]

1. e4 {[%clk 0:00:58]}  c5 {[%clk 0:02:55]} 2. Nf3 {[%clk 0:00:58]}  Nc6 {[%clk 0:02:52]} 3. d4 {[%clk 0:00:57]}  cxd4 {[%clk 0:02:52]} 4. Nxd4 {[%clk 0:00:58]}  Nf6 {[%clk 0:02:52]} 5. Nc3 {[%clk 0:00:58]}  e5 {[%clk 0:02:53]} 6. Ndb5 {[%clk 0:00:58]}  d6 {[%clk 0:02:52]} 7. Bg5 {[%clk 0:00:58]}  a6 {[%clk 0:02:53]} 8. Na3 {[%clk 0:00:58]}  Be6 {[%clk 0:02:53]} 9. Nd5 {[%clk 0:00:58]}  Bxd5 {[%clk 0:01:54]} 10. exd5 {[%clk 0:00:59]}  Qa5+ {[%clk 0:01:54]} 11. c3 {[%clk 0:00:58]}  Qxd5 {[%clk 0:01:52]} 12. Bxf6 {[%clk 0:00:55]}  Qxd1+ {[%clk 0:01:31]} 13. Rxd1 {[%clk 0:00:56]}  gxf6 {[%clk 0:01:31]} 14. Nc4 {[%clk 0:00:56]}  Rd8 {[%clk 0:01:10]} 15. Nb6 {[%clk 0:00:54]}  f5 {[%clk 0:01:08]} 16. Bc4 {[%clk 0:00:52]}  h5 {[%clk 0:00:58]} 17. O-O {[%clk 0:00:50]}  Bh6 {[%clk 0:00:54]} 18. Rfe1 {[%clk 0:00:42]}  Kf8 {[%clk 0:00:45]} 19. Bd5 {[%clk 0:00:40]}  e4 {[%clk 0:00:39]} 20. f3 {[%clk 0:00:39]}  e3 {[%clk 0:00:37]} 21. Nc4 {[%clk 0:00:33]}  f4 {[%clk 0:00:36]} 22. Bxc6 {[%clk 0:00:28]}  bxc6 {[%clk 0:00:35]} 23. Nxd6 {[%clk 0:00:24]}  Kg7 {[%clk 0:00:21]} 24. Kf1 {[%clk 0:00:20]}  Kg6 {[%clk 0:00:20]} 25. Ke2 {[%clk 0:00:20]}  Rd7 {[%clk 0:00:19]} 26. Nc4 {[%clk 0:00:18]}  Rxd1 {[%clk 0:00:17]} 27. Rxd1 {[%clk 0:00:19]}  Rc8 {[%clk 0:00:15]} 28. Rd6+ {[%clk 0:00:18]}  Kg7 {[%clk 0:00:15]} 29. b3 {[%clk 0:00:17]}  Bg5 {[%clk 0:00:15]} 30. Ne5 {[%clk 0:00:15]}  Bf6 {[%clk 0:00:14]} 31. Rxc6 {[%clk 0:00:14]}  Rd8 {[%clk 0:00:11]} 32. Nc4 {[%clk 0:00:14]}  Bxc3 {[%clk 0:00:11]} 33. Rxa6 {[%clk 0:00:15]}  h4 {[%clk 0:00:10]} 34. Ra7 {[%clk 0:00:13]}  Rd5 {[%clk 0:00:10]} 35. a4 {[%clk 0:00:12]}  Rg5 {[%clk 0:00:09]} 36. Kf1 {[%clk 0:00:12]}  h3 {[%clk 0:00:10]} 37. gxh3 {[%clk 0:00:12]}  Bb4 {[%clk 0:00:08]} 38. Ra8 {[%clk 0:00:11]}  Rd5 {[%clk 0:00:06]} 39. Ke2 {[%clk 0:00:09]}  Rh5 {[%clk 0:00:07]} 40. a5 {[%clk 0:00:07]}  Rxh3 {[%clk 0:00:06]} 41. Re8 {[%clk 0:00:06]}  Rxh2+ {[%clk 0:00:07]} 42. Kd3 {[%clk 0:00:06]}  Ra2 {[%clk 0:00:06]} 43. a6 {[%clk 0:00:05]}  Rxa6 {[%clk 0:00:06]} 44. Re4 {[%clk 0:00:05]}  Rf6 {[%clk 0:00:06]} 45. Ne5 {[%clk 0:00:05]}  Bd6 {[%clk 0:00:05]} 46. Nc4 {[%clk 0:00:06]}  Bc5 {[%clk 0:00:05]} 47. Kc3 {[%clk 0:00:05]}  Re6 {[%clk 0:00:05]} 48. b4 {[%clk 0:00:04]}  Rxe4 {[%clk 0:00:05]} 49. fxe4 {[%clk 0:00:05]}  Ba7 {[%clk 0:00:04]} 50. Kd3 {[%clk 0:00:05]}  Kf6 {[%clk 0:00:05]} 51. b5 {[%clk 0:00:05]}  Bc5 {[%clk 0:00:04]} 52. b6 {[%clk 0:00:05]}  Ke6 {[%clk 0:00:04]} 53. b7 {[%clk 0:00:05]}  Ba7 {[%clk 0:00:04]} 54. Ke2 {[%clk 0:00:04]}  Kd7 {[%clk 0:00:04]} 55. Kf3 {[%clk 0:00:04]}  Kc7 {[%clk 0:00:04]} 56. Ne5 {[%clk 0:00:04]}  f6 {[%clk 0:00:04]} 57. Ng4 {[%clk 0:00:03]}  Bd4 {[%clk 0:00:05]} 58. Nxe3 {[%clk 0:00:02]}  fxe3 {[%clk 0:00:05]} 59. e5 {[%clk 0:00:03]}  fxe5 {[%clk 0:00:05]} 60. Ke2 {[%clk 0:00:03]}  Kxb7 {[%clk 0:00:05]} 61. Kd3 {[%clk 0:00:04]}  Kc6 {[%clk 0:00:06]} 0-1


[Site "https://www.chess.com"]

[Event "Titled Tuesday Blitz August 10 2021"]
[White "Lintchevski, Daniil"]
[Black "Estrada Nieto, Julian"]
[WhiteFideId "4171055"]
[BlackFideId "5101018"]
[WhiteElo "2494"]
[BlackElo "2270"]
[Result "1-0"]
[Round "01"]
[TimeControl "180+1"]
[Date "2021.08.10"]
[WhiteClock "0:00:33"]
[BlackClock "0:00:07"]

1. Nf3 {[%clk 0:03:00]}  d5 {[%clk 0:02:59]} 2. d4 {[%clk 0:03:01]}  Nf6 {[%clk 0:02:59]} 3. c4 {[%clk 0:03:01]}  dxc4 {[%clk 0:03:00]} 4. e3 {[%clk 0:03:01]}  e6 {[%clk 0:03:01]} 5. Bxc4 {[%clk 0:03:01]}  c5 {[%clk 0:03:01]} 6. O-O {[%clk 0:03:02]}  a6 {[%clk 0:03:02]} 7. dxc5 {[%clk 0:03:02]}  Bxc5 {[%clk 0:03:00]} 8. Qxd8+ {[%clk 0:03:02]}  Kxd8 {[%clk 0:03:01]} 9. Ne5 {[%clk 0:03:00]}  Ke7 {[%clk 0:03:01]} 10. Be2 {[%clk 0:03:01]}  Nbd7 {[%clk 0:02:59]} 11. Nd3 {[%clk 0:03:01]}  Bd6 {[%clk 0:02:53]} 12. b3 {[%clk 0:02:54]}  b5 {[%clk 0:02:49]} 13. Bb2 {[%clk 0:02:52]}  Bb7 {[%clk 0:02:48]} 14. a4 {[%clk 0:02:49]}  Rhc8 {[%clk 0:02:34]} 15. axb5 {[%clk 0:02:42]}  axb5 {[%clk 0:02:34]} 16. Nc3 {[%clk 0:02:42]}  b4 {[%clk 0:02:29]} 17. Nb5 {[%clk 0:02:37]}  Rxa1 {[%clk 0:02:18]} 18. Rxa1 {[%clk 0:02:35]}  Rc2 {[%clk 0:02:09]} 19. Nd4 {[%clk 0:02:31]}  Rc8 {[%clk 0:02:03]} 20. Ra7 {[%clk 0:02:18]}  Bd5 {[%clk 0:01:57]} 21. f3 {[%clk 0:02:14]}  Rc7 {[%clk 0:01:43]} 22. Rxc7 {[%clk 0:02:11]}  Bxc7 {[%clk 0:01:42]} 23. Nxb4 {[%clk 0:02:12]}  Bb6 {[%clk 0:01:34]} 24. Nxd5+ {[%clk 0:02:03]}  Nxd5 {[%clk 0:01:34]} 25. Kf2 {[%clk 0:02:04]}  f5 {[%clk 0:01:29]} 26. Bc4 {[%clk 0:02:02]}  N7f6 {[%clk 0:01:26]} 27. Ke2 {[%clk 0:01:58]}  g6 {[%clk 0:01:26]} 28. Kd3 {[%clk 0:01:44]}  f4 {[%clk 0:01:25]} 29. e4 {[%clk 0:01:34]}  Ne3 {[%clk 0:01:25]} 30. Nc6+ {[%clk 0:01:34]}  Kf7 {[%clk 0:01:01]} 31. g3 {[%clk 0:01:31]}  Nf1 {[%clk 0:00:55]} 32. gxf4 {[%clk 0:01:23]}  Nxh2 {[%clk 0:00:54]} 33. Ne5+ {[%clk 0:01:24]}  Ke7 {[%clk 0:00:53]} 34. Ba3+ {[%clk 0:01:23]}  Kd8 {[%clk 0:00:50]} 35. Bxe6 {[%clk 0:01:21]}  Nh5 {[%clk 0:00:43]} 36. Bc1 {[%clk 0:01:10]}  Bc7 {[%clk 0:00:39]} 37. Bg4 {[%clk 0:01:09]}  Ng7 {[%clk 0:00:28]} 38. Bb2 {[%clk 0:00:56]}  Nh5 {[%clk 0:00:26]} 39. Bxh5 {[%clk 0:00:42]}  gxh5 {[%clk 0:00:26]} 40. Ke2 {[%clk 0:00:43]}  Bb6 {[%clk 0:00:19]} 41. Nc4 {[%clk 0:00:38]}  Bc5 {[%clk 0:00:19]} 42. Bc3 {[%clk 0:00:38]}  Ke7 {[%clk 0:00:18]} 43. b4 {[%clk 0:00:38]}  Ba7 {[%clk 0:00:17]} 44. b5 {[%clk 0:00:38]}  Bc5 {[%clk 0:00:16]} 45. b6 {[%clk 0:00:38]}  Kd7 {[%clk 0:00:16]} 46. f5 {[%clk 0:00:37]}  Kc6 {[%clk 0:00:14]} 47. Be5 {[%clk 0:00:35]}  Ng4 {[%clk 0:00:12]} 48. fxg4 {[%clk 0:00:34]}  hxg4 {[%clk 0:00:12]} 49. f6 {[%clk 0:00:34]}  h5 {[%clk 0:00:11]} 50. f7 {[%clk 0:00:34]}  h4 {[%clk 0:00:11]} 51. Bd6 {[%clk 0:00:34]}  Bxd6 {[%clk 0:00:07]} 52. Nxd6 {[%clk 0:00:34]}  h3 {[%clk 0:00:07]} 53. f8=Q {[%clk 0:00:35]}  h2 {[%clk 0:00:07]} 54. Qh6 {[%clk 0:00:33]} 1-0


[Site "https://www.chess.com"]

[Event "Titled Tuesday Blitz August 10 2021"]
[White "Maghsoodloo, Parham"]
[Black "Prydun, Andriy"]
[WhiteFideId "12539929"]
[BlackFideId "14145898"]
[WhiteElo "2601"]
[BlackElo "2047"]
[Result "1-0"]
[Round "01"]
[TimeControl "180+1"]
[Date "2021.08.10"]
[WhiteClock "0:00:08"]
[BlackClock "0:00:01"]

1. d4 {[%clk 0:03:00]}  d5 {[%clk 0:03:00]} 2. c4 {[%clk 0:03:00]}  c6 {[%clk 0:03:00]} 3. Nf3 {[%clk 0:03:00]}  Nf6 {[%clk 0:03:00]} 4. Nc3 {[%clk 0:02:59]}  e6 {[%clk 0:03:00]} 5. Bg5 {[%clk 0:02:58]}  h6 {[%clk 0:03:00]} 6. Bxf6 {[%clk 0:02:58]}  Qxf6 {[%clk 0:03:00]} 7. Qb3 {[%clk 0:02:58]}  Qd8 {[%clk 0:02:58]} 8. g3 {[%clk 0:02:56]}  Be7 {[%clk 0:02:55]} 9. Bg2 {[%clk 0:02:56]}  O-O {[%clk 0:02:55]} 10. O-O {[%clk 0:02:56]}  Nd7 {[%clk 0:02:50]} 11. e4 {[%clk 0:02:53]}  Nf6 {[%clk 0:02:49]} 12. e5 {[%clk 0:02:53]}  Nd7 {[%clk 0:02:49]} 13. a4 {[%clk 0:02:51]}  b6 {[%clk 0:02:46]} 14. Rfc1 {[%clk 0:02:41]}  Ba6 {[%clk 0:02:43]} 15. Bf1 {[%clk 0:02:41]}  dxc4 {[%clk 0:02:23]} 16. Bxc4 {[%clk 0:02:40]}  Bb7 {[%clk 0:02:23]} 17. h4 {[%clk 0:02:32]}  Rc8 {[%clk 0:02:02]} 18. Rd1 {[%clk 0:02:29]}  Rc7 {[%clk 0:02:02]} 19. Bd3 {[%clk 0:02:24]}  Qa8 {[%clk 0:01:36]} 20. Be4 {[%clk 0:02:24]}  a6 {[%clk 0:00:48]} 21. Qc2 {[%clk 0:02:23]}  Rd8 {[%clk 0:00:45]} 22. Qe2 {[%clk 0:02:08]}  Nf8 {[%clk 0:00:43]} 23. Rd2 {[%clk 0:01:59]}  Rcd7 {[%clk 0:00:41]} 24. Rad1 {[%clk 0:01:59]}  c5 {[%clk 0:00:36]} 25. dxc5 {[%clk 0:01:22]}  Bxc5 {[%clk 0:00:34]} 26. Rxd7 {[%clk 0:01:13]}  Rxd7 {[%clk 0:00:35]} 27. Rxd7 {[%clk 0:01:12]}  Nxd7 {[%clk 0:00:36]} 28. Qd3 {[%clk 0:01:10]}  Bxe4 {[%clk 0:00:33]} 29. Nxe4 {[%clk 0:01:10]}  Qc6 {[%clk 0:00:29]} 30. b3 {[%clk 0:01:05]}  Be7 {[%clk 0:00:27]} 31. Kg2 {[%clk 0:00:50]}  b5 {[%clk 0:00:12]} 32. axb5 {[%clk 0:00:50]}  axb5 {[%clk 0:00:13]} 33. h5 {[%clk 0:00:44]}  b4 {[%clk 0:00:11]} 34. g4 {[%clk 0:00:39]}  Bf8 {[%clk 0:00:07]} 35. Kg3 {[%clk 0:00:39]}  Qd5 {[%clk 0:00:07]} 36. Qxd5 {[%clk 0:00:37]}  exd5 {[%clk 0:00:08]} 37. Ned2 {[%clk 0:00:36]}  Nc5 {[%clk 0:00:08]} 38. Nd4 {[%clk 0:00:35]}  Ne6 {[%clk 0:00:07]} 39. Nc2 {[%clk 0:00:27]}  Bc5 {[%clk 0:00:07]} 40. Nf3 {[%clk 0:00:23]}  d4 {[%clk 0:00:06]} 41. Nfe1 {[%clk 0:00:23]}  Be7 {[%clk 0:00:03]} 42. Nd3 {[%clk 0:00:23]}  Kf8 {[%clk 0:00:01]} 43. f4 {[%clk 0:00:21]}  g6 {[%clk 0:00:02]} 44. f5 {[%clk 0:00:17]}  gxf5 {[%clk 0:00:02]} 45. gxf5 {[%clk 0:00:17]}  Ng7 {[%clk 0:00:02]} 46. Kg4 {[%clk 0:00:17]}  f6 {[%clk 0:00:02]} 47. e6 {[%clk 0:00:11]}  Ne8 {[%clk 0:00:01]} 48. Ncxb4 {[%clk 0:00:11]}  Nd6 {[%clk 0:00:01]} 49. Nc6 {[%clk 0:00:10]}  Ne4 {[%clk 0:00:02]} 50. Nxd4 {[%clk 0:00:10]}  Nd2 {[%clk 0:00:02]} 51. Nf3 {[%clk 0:00:09]}  Nxb3 {[%clk 0:00:02]} 52. Nf4 {[%clk 0:00:07]}  Nc5 {[%clk 0:00:02]} 53. Ng6+ {[%clk 0:00:08]}  Ke8 {[%clk 0:00:02]} 54. Nh2 {[%clk 0:00:08]}  Nd3 {[%clk 0:00:02]} 55. Kf3 {[%clk 0:00:07]}  Nc5 {[%clk 0:00:02]} 56. Ng4 {[%clk 0:00:07]}  Bf8 {[%clk 0:00:01]} 57. Nxf6+ {[%clk 0:00:08]} 1-0


[Site "https://www.chess.com"]